bitfinex-derivatives/quotes_ETHF0:USTF0_20210109
["timestamp","ask_amount","ask_price","bid_price","bid_amount"]
[1610217178120,4.00959,1227.0,1226.7,49.9229]
[1610217178921,4.00959,1227.0,1226.7,53.93249]
[1610217180925,4.00959,1226.8,1226.7,53.93249]
[1610217181126,5.99539,1226.8,1226.7,53.93249]
[1610217183028,5.99539,1226.8,1226.7,49.9229]
[1610217197047,5.99539,1226.8,1226.7,53.93249]
[1610217197449,5.99539,1226.8,1226.7,4.00959]
[1610217197649,1.9858,1226.8,1226.7,34.00959]
[1610217197848,93.42854525,1227.4,1226.7,34.00959]
[1610217197849,86.89219101,1227.3,1226.7,34.00959]
[1610217198048,1.7124,1226.8,1226.7,34.00959]
[1610217198650,1.7124,1226.8,1226.7,4.00959]
[1610217200352,1.7124,1226.8,1226.7,34.00959]
[1610217201851,1.7124,1226.8,1226.7,35.25595657]
[1610217203056,2.5416,1227.1,1226.7,35.25595657]
[1610217204857,2.5416,1227.1,1226.8,1.24619681]
[1610217205061,2.5416,1227.1,1227.0,4.00959]
[1610217205260,2.5416,1227.1,1227.0,34.00959]
[1610217206361,2.5416,1227.1,1227.0,4.00959]
[1610217206761,2.5416,1227.1,1227.0,34.00959]
[1610217206961,15.315,1227.5,1227.1,60.0516]
[1610217207163,15.315,1227.5,1227.4,4.00959]
[1610217212969,15.315,1227.5,1227.4,34.00959]
[1610217214173,15.315,1227.5,1227.4,4.00959]
[1610217223482,15.315,1227.5,1227.4,5.25549602]
[1610217230088,15.315,1227.5,1227.4,52.40929602]
[1610217239305,15.315,1227.5,1227.4,5.25549602]
[1610217241306,19.32459,1227.5,1227.4,5.25549602]
[1610217241907,19.32459,1227.5,1227.4,4.00959]
[1610217242707,19.32459,1227.5,1227.3,56.8263]
[1610217242907,19.32459,1227.5,1226.6,3.405]
[1610217243107,19.32459,1227.5,1226.8,67.718]
[1610217243307,4.00959,1227.1,1226.9,4.00959]
[1610217243508,5.65169,1227.1,1226.6,3.405]
[1610217244714,5.65169,1227.1,1226.7,1.24657371]
[1610217245316,5.65169,1227.1,1226.9,4.00959]
[1610217245317,1.6421,1227.1,1226.9,4.00959]
[1610217245517,1.6421,1227.1,1226.9,67.72379]
[1610217248415,4.00959,1227.3,1226.9,67.72379]
[1610217249318,4.00959,1227.3,1227.1,4.00959]
[1610217250218,4.00959,1227.3,1226.9,63.7142]
[1610217251317,4.00959,1227.3,1226.9,67.72379]
[1610217253322,4.00959,1227.1,1226.9,67.72379]
[1610217254323,1.8125,1227.2,1226.9,67.72379]
[1610217255322,1.8125,1227.2,1227.1,4.00959]
[1610217256122,1.8125,1227.2,1227.1,11.00249]
[1610217258524,15.315,1227.5,1227.1,11.00249]
[1610217258725,15.315,1227.5,1227.1,4.00959]
[1610217258925,15.315,1227.5,1227.2,48.9566]
[1610217259327,4.00959,1227.4,1227.2,48.9566]
[1610217263332,4.00959,1227.4,1227.3,4.00959]
[1610217264734,15.315,1227.5,1227.3,4.00959]
[1610217269038,15.315,1227.5,1226.3,30.0]
[1610217269039,15.315,1227.5,1226.8,67.603]
[1610217269439,4.00959,1226.9,1226.8,67.603]
[1610217270743,4.00959,1226.9,1226.5,4.00959]
[1610217270944,4.00959,1226.9,1226.8,1.24664357]
[1610217272444,4.00959,1226.9,1226.6,1.2466537]
[1610217273044,6.54829,1226.9,1226.6,1.2466537]
[1610217273445,4.00959,1226.7,1226.6,1.2466537]
[1610217273646,2.5387,1226.9,1226.6,1.2466537]
[1610217273845,2.5387,1226.9,1226.7,58.3007]
[1610217275448,2.5387,1226.9,1226.8,4.00959]
[1610217275649,4.00959,1227.0,1226.8,4.00959]
[1610217276048,3.98816577,1227.0,1226.7,58.3007]
[1610217277349,4.00959,1226.8,1226.7,58.3007]
[1610217280255,4.00959,1226.8,1226.7,59.54733614]
[1610217281654,6.20449,1226.8,1226.7,59.54733614]
[1610217283158,6.20449,1226.8,1226.7,58.3007]
[1610217284760,6.20449,1226.8,1226.7,59.54734943]
[1610217285762,2.1949,1226.8,1226.7,59.54734943]
[1610217286861,2.2347,1227.2,1226.7,59.54734943]
[1610217287261,15.315,1227.5,1226.7,59.54734943]
[1610217287461,4.00959,1227.0,1226.9,4.00959]
[1610217287662,1.7698,1227.0,1226.9,4.00959]
[1610217290165,1.7698,1227.0,1226.9,5.25590204]
[1610217292566,1.7698,1227.0,1226.9,35.25590204]
[1610217292766,15.315,1227.5,1226.9,35.25590204]
[1610217292966,15.315,1227.5,1227.3,51.3276]
[1610217293467,15.315,1227.5,1227.4,4.00959]
[1610217294769,15.315,1227.5,1227.3,51.3276]
[1610217295569,4.00959,1227.4,1227.3,51.3276]
[1610217295771,4.00959,1227.4,1227.1,4.00959]
[1610217295973,4.00959,1227.4,1227.2,58.2866]
[1610217296171,4.00959,1227.4,1227.1,4.00959]
[1610217296372,4.00959,1227.4,1227.2,59.4324]
[1610217296572,15.315,1227.5,1227.2,59.4324]
[1610217297473,19.32459,1227.5,1227.3,4.00959]
[1610217301579,19.32459,1227.5,1227.2,59.4324]
[1610217303483,4.00959,1227.3,1227.2,59.4324]
[1610217305084,13.0,1227.5,1227.2,59.4324]
[1610217305284,13.0,1227.5,1227.1,4.00959]
[1610217305486,13.0,1227.5,1227.4,50.90129]
[1610217305685,13.0,1227.5,1227.4,4.00959]
[1610217310993,15.2929,1227.5,1227.4,4.00959]
[1610217311992,15.2929,1227.5,1227.3,49.3402]
[1610217312995,15.2929,1227.5,1226.7,3.405]
[1610217313194,15.2929,1227.5,1226.8,60.0688]
[1610217313995,15.2929,1227.5,1226.9,1.24634946]
[1610217315493,4.00959,1227.0,1226.9,1.24634946]
[1610217316796,4.00959,1227.0,1226.8,64.07839]
[1610217318597,4.00959,1227.0,1226.8,60.0688]
[1610217318997,6.11949,1227.0,1226.8,60.0688]
[1610217323210,4.00959,1227.0,1226.8,60.0688]
[1610217323607,4.00959,1227.0,1226.9,4.00959]
[1610217331916,66.266,1227.4,1226.9,4.00959]
[1610217332116,66.266,1227.4,1226.9,13.15279]
[1610217333717,4.00959,1227.1,1226.9,13.15279]
[1610217335023,4.00959,1227.1,1227.0,1.24627181]
[1610217335621,66.266,1227.4,1227.0,1.24627181]
[1610217335820,4.00959,1227.4,1227.0,1.24627181]
[1610217336222,4.00959,1227.4,1227.2,58.7269]
[1610217336722,15.2929,1227.5,1227.2,58.7269]
[1610217337724,19.30249,1227.5,1227.4,4.00959]
[1610217338125,19.30249,1227.5,1227.4,12.71839]
[1610217341831,15.2929,1227.5,1227.4,12.71839]
[1610217356250,15.2929,1227.5,1227.4,13.96428529]
[1610217363459,15.2929,1227.5,1227.4,5.25548529]
[1610217365467,15.2929,1227.5,1227.4,35.25548529]
[1610217366469,13.0,1227.5,1227.4,35.25548529]
[1610217373880,13.0,1227.5,1227.4,5.25548529]
[1610217375183,13.0,1227.5,1227.4,4.00959]
[1610217378285,13.0,1227.5,1227.4,71.70899]
[1610217378485,13.0,1227.5,1227.1,1.6792]
[1610217378685,13.0,1227.5,1227.1,57.1719]
[1610217380086,4.00959,1227.3,1227.1,61.18149]
[1610217381087,4.00959,1227.3,1227.1,57.1719]
[1610217384087,4.00959,1227.3,1227.1,61.18149]
[1610217384888,4.00959,1227.3,1227.1,57.1719]
[1610217394105,4.00959,1227.3,1227.2,4.00959]
[1610217394305,4.00959,1227.3,1227.1,57.1719]
[1610217395305,4.00959,1227.3,1226.4,32.3874]
[1610217395506,4.00959,1227.3,1226.6,53.2767]
[1610217396208,4.00959,1227.3,1227.0,4.00959]
[1610217398106,4.00959,1227.1,1227.0,4.00959]
[1610217398510,64.21,1227.0,1226.4,58.3978]
[1610217398909,4.00959,1227.1,1226.4,2.3874]
[1610217398910,5.89559,1227.1,1226.4,2.3874]
[1610217399110,5.89559,1227.1,1226.1,30.0]
[1610217399310,5.89559,1227.1,1225.9,1.5914]
[1610217399510,5.89559,1227.1,1225.7,6.811]
[1610217399511,64.0479,1226.8,1225.7,6.811]
[1610217399714,66.2576,1226.8,1225.7,6.811]
[1610217399912,66.2576,1226.8,1225.6,53.3644]
[1610217400111,66.2576,1226.8,1226.2,1.24682536]
[1610217400714,2.2097,1226.8,1226.2,1.24682536]
[1610217401117,66.0832,1226.3,1226.2,1.24682536]
[1610217401515,1.6848,1226.4,1225.7,1.24689914]
[1610217401714,1.6848,1226.4,1225.7,67.38559914]
[1610217401915,1.6848,1226.4,1225.7,1.24689914]
[1610217402115,4.00959,1226.2,1225.9,4.00959]
[1610217402317,4.00959,1226.2,1225.9,61.77299]
[1610217402918,4.00959,1226.2,1226.0,1.24691546]
[1610217403118,4.00959,1226.2,1226.0,31.24691546]
[1610217403722,4.00959,1226.2,1226.0,1.24691546]
[1610217404120,4.00959,1226.2,1226.1,4.00959]
[1610217404323,4.00959,1226.2,1226.1,5.25635411]
[1610217404720,1.6848,1226.4,1226.1,5.25635411]
[1610217404921,1.6848,1226.4,1226.1,12.08005411]
[1610217405321,1.6848,1226.4,1226.1,5.25635411]
[1610217405623,1.6848,1226.4,1226.2,65.7825]
[1610217405824,1.6848,1226.4,1226.2,67.02922824]
[1610217406225,1.6848,1226.4,1226.3,4.00959]
[1610217406424,4.00959,1226.6,1226.3,4.00959]
[1610217408227,4.00959,1226.6,1226.5,4.00959]
[1610217412030,2.2097,1226.8,1226.5,4.00959]
[1610217412231,1.886,1227.1,1226.6,48.437]
[1610217412432,8.8678,1227.4,1226.6,48.437]
[1610217413130,8.8678,1227.4,1226.6,78.437]
[1610217413331,2.4459,1227.4,1226.6,78.437]
[1610217413532,13.0,1227.5,1226.6,78.437]
[1610217414331,13.0,1227.5,1227.4,4.00959]
[1610217415133,13.0,1227.5,1227.4,68.04449]
[1610217419837,13.0,1227.5,1227.4,64.0349]
[1610217422346,13.0,1227.5,1227.4,68.04449]
[1610217435270,13.0,1227.5,1227.4,98.04449]
[1610217436671,13.0,1227.5,1227.4,68.04449]
[1610217451195,13.0,1227.5,1227.4,69.29036026]
[1610217458201,13.0,1227.5,1227.4,68.04449]
[1610217458601,17.00959,1227.5,1227.4,68.04449]
[1610217467015,17.00959,1227.5,1227.4,69.29025096]
[1610217467716,13.0,1227.5,1227.4,69.29025096]
[1610217468017,13.0,1227.5,1227.4,5.25535096]
[1610217486236,13.0,1227.5,1227.4,35.25535096]
[1610217487437,13.0,1227.5,1227.4,37.47655096]
[1610217507263,13.0,1227.5,1227.4,7.47655096]
[1610217511166,13.0,1227.5,1227.4,68.99755096]
[1610217522784,13.0,1227.5,1227.4,37.47655096]
[1610217535303,12.99180634,1227.5,1227.4,37.47655096]
[1610217538406,12.99180634,1227.5,1227.4,33.46696096]
[1610217539206,12.99180634,1227.5,1227.4,37.47655096]
[1610217540612,12.99180634,1227.5,1227.4,157.12515096]
[1610217540813,12.99180634,1227.5,1227.4,198.00415096]
[1610217541012,12.99180634,1227.5,1227.4,37.47655096]
[1610217541712,12.99180634,1227.5,1227.4,202.15785096]
[1610217541913,12.99180634,1227.5,1227.4,37.47655096]
[1610217557337,12.99180634,1227.5,1227.4,37.72551345]
[1610217557738,12.99180634,1227.5,1227.4,37.97428814]
[1610217558538,12.99180634,1227.5,1227.4,37.72554125]
[1610217559840,12.99180634,1227.5,1227.4,37.47655096]
[1610217561240,12.99180634,1227.5,1227.4,37.97454736]
[1610217563041,12.99180634,1227.5,1227.4,37.47655096]
[1610217564245,12.99180634,1227.5,1227.4,37.97454034]
[1610217564547,12.99180634,1227.5,1227.4,37.72555644]
[1610217565248,12.99180634,1227.5,1227.4,37.97455164]
[1610217566045,12.99180634,1227.5,1227.4,37.47655096]
[1610217566346,12.99180634,1227.5,1227.4,37.72555684]
[1610217569453,12.99180634,1227.5,1227.4,37.47655096]
[1610217571851,12.99180634,1227.5,1227.4,33.46696096]
[1610217573453,12.99180634,1227.5,1227.4,37.47655096]
[1610217575857,12.99180634,1227.5,1227.4,95.99285096]
[1610217579960,12.99180634,1227.5,1227.4,37.47655096]
[1610217586066,1.22550634,1227.5,1227.4,37.47655096]
[1610217589470,6.00829,1229.5,1227.4,37.47655096]
[1610217589670,6.00829,1229.5,1228.1,55.3675]
[1610217589871,6.00829,1229.5,1228.2,30.0]
[1610217590871,6.00829,1229.5,1228.3,1.24428671]
[1610217591474,6.00829,1229.5,1229.4,4.00959]
[1610217594981,1.9987,1229.5,1229.4,4.00959]
[1610217595181,86.71326519,1230.0,1229.4,13.09249]
[1610217595681,4.00959,1229.7,1229.4,4.00959]
[1610217595882,6.59419,1229.7,1229.4,71.15479]
[1610217601788,6.59419,1229.7,1229.6,4.00959]
[1610217604490,6.59419,1229.7,1229.6,70.72189]
[1610217620416,2.5846,1229.7,1229.6,70.72189]
[1610217621018,86.70111376,1230.2,1229.6,70.72189]
[1610217621216,1.9558,1229.7,1229.6,70.72189]
[1610217626325,4.00959,1229.8,1229.6,70.72189]
[1610217626524,1.6672,1229.7,1229.6,70.72189]
[1610217630932,1.6672,1229.7,1229.6,4.00959]
[1610217631431,86.69453636,1230.3,1229.6,4.00959]
[1610217631632,86.69432343,1230.2,1229.6,4.00959]
[1610217631833,1.6476,1230.2,1229.4,47.3147]
[1610217632032,4.00959,1230.0,1229.7,4.00959]
[1610217633037,4.00959,1230.0,1229.7,13.37339]
[1610217635039,4.00959,1230.0,1229.7,9.3638]
[1610217635939,4.00959,1229.8,1229.7,9.3638]
[1610217636139,5.75009,1229.8,1229.7,9.3638]
[1610217641944,5.75009,1229.8,1229.7,13.37339]
[1610217642744,5.75009,1229.8,1229.7,9.3638]
[1610217646445,5.75009,1229.8,1229.6,4.00959]
[1610217648846,5.75009,1229.8,1229.6,51.45519]
[1610217650047,28.75009,1229.8,1229.6,51.45519]
[1610217651251,28.75009,1229.8,1229.6,4.00959]
[1610217651449,24.7405,1229.8,1229.6,4.00959]
[1610217655552,24.7405,1229.8,1229.7,58.6668]
[1610217667661,24.7405,1229.8,1229.6,4.00959]
[1610217669064,24.7405,1229.8,1229.6,61.95889]
[1610217678373,24.7405,1229.8,1229.6,4.00959]
[1610217678573,24.7405,1229.8,1229.2,54.5132]
[1610217678773,24.7405,1229.8,1228.8,3.405]
[1610217680073,4.00959,1229.1,1228.8,7.41459]
[1610217680273,5.81159,1229.1,1228.9,1.2443077]
[1610217682276,5.81159,1229.1,1228.4,4.00959]
[1610217683077,5.81159,1229.1,1228.2,49.4879]
[1610217683277,5.81159,1229.1,1227.8,3.405]
[1610217683879,5.81159,1229.1,1228.5,1.24469166]
[1610217684279,4.00959,1228.6,1228.5,1.24469166]
[1610217684479,5.86889,1228.6,1228.5,1.24469166]
[1610217685480,5.86889,1228.6,1228.4,1.24474045]
[1610217686981,5.86889,1228.6,1228.3,55.2735]
[1610217688183,4.00959,1228.4,1228.3,55.2735]
[1610217694397,4.00959,1228.4,1227.0,3.405]
[1610217694597,4.00959,1228.4,1227.6,58.6842]
[1610217696200,4.00959,1227.7,1227.6,58.6842]
[1610217696400,6.28199,1227.7,1227.6,58.6842]
[1610217699203,2.2724,1227.7,1227.6,58.6842]
[1610217700304,2.2724,1227.7,1227.6,62.69379]
[1610217701304,2.2724,1227.7,1227.6,63.93919533]
[1610217701505,1.7433,1227.7,1227.6,63.93919533]
[1610217706809,4.00959,1227.9,1227.6,63.93919533]
[1610217708509,4.00959,1227.9,1227.6,62.69379]
[1610217710311,4.00959,1227.7,1227.6,62.69379]
[1610217710511,6.52369,1227.7,1227.6,62.69379]
[1610217711012,6.52369,1227.7,1227.6,63.9392917]
[1610217711513,6.52369,1227.7,1227.6,1.2455017]
[1610217712517,6.52369,1227.7,1227.4,4.00959]
[1610217713919,6.52369,1227.7,1227.5,1.2456761]
[1610217717023,6.52369,1227.7,1227.5,58.9870761]
[1610217718422,6.52369,1227.7,1227.6,1.24558787]
[1610217719725,6.52369,1227.7,1227.5,1.24572294]
[1610217724528,6.52369,1227.7,1227.6,4.00959]
[1610217726231,6.52369,1227.7,1227.5,1.24572294]
[1610217726831,65.40609,1227.7,1227.6,1.24579411]
[1610217728135,65.40609,1227.7,1227.1,1.24608765]
[1610217728533,4.00959,1227.3,1227.1,1.24608765]
[1610217728933,6.16969,1227.3,1227.1,1.24608765]
[1610217731237,6.16969,1227.3,1227.0,3.405]
[1610217732540,4.00959,1227.1,1227.0,3.405]
[1610217735445,4.00959,1227.1,1226.2,56.0247]
[1610217735646,47.7211,1226.8,1226.2,56.0247]
[1610217735847,4.00959,1227.1,1226.0,3.405]
[1610217735848,2.5196,1226.9,1226.0,3.405]
[1610217736048,62.2061,1226.8,1226.0,3.405]
[1610217736648,4.00959,1226.1,1225.8,2.3063]
[1610217737049,69.22659,1226.1,1225.8,2.3063]
[1610217738151,69.22659,1226.1,1225.4,4.00959]
[1610217738553,4.00959,1225.8,1225.6,4.00959]
[1610217739352,1.8603,1226.2,1225.6,4.00959]
[1610217739752,1.8603,1226.2,1225.8,61.8614]
[1610217740151,1.8603,1226.2,1225.7,1.24718483]
[1610217740553,1.8603,1226.2,1225.9,4.00959]
[1610217742857,4.00959,1226.1,1225.9,4.00959]
[1610217745262,4.00959,1226.1,1225.4,66.4137]
[1610217746665,4.00959,1226.1,1225.5,1.24701973]
[1610217746866,4.00959,1225.7,1225.6,4.00959]
[1610217747066,6.59539,1225.7,1225.6,4.00959]
[1610217747967,6.59539,1225.7,1225.6,5.25671565]
[1610217753879,2.5858,1225.7,1225.6,1.24712565]
[1610217754581,1.899,1225.7,1225.6,1.24712565]
[1610217754980,1.899,1225.7,1225.6,5.25671565]
[1610217755183,1.899,1225.7,1225.6,4.00959]
[1610217756384,1.899,1225.7,1225.4,1.2471523]
[1610217756688,1.899,1225.7,1225.6,1.24717514]
[1610217757887,9.4726,1225.7,1225.6,1.24717514]
[1610217758087,1.899,1225.7,1225.5,1.24717475]
[1610217758687,54.3715,1225.6,1225.5,1.24717475]
[1610217759086,58.38109,1225.6,1225.5,1.24717475]
[1610217760990,58.38109,1225.6,1224.9,1.24750248]
[1610217763093,4.00959,1225.0,1224.9,1.24750248]
[1610217763292,2.321,1225.0,1224.9,1.24750248]
[1610217765199,2.321,1225.0,1224.9,5.25709248]
[1610217768401,4.00959,1225.1,1224.9,5.25709248]
[1610217769604,4.00959,1225.1,1225.0,1.24795424]
[1610217770906,4.00959,1225.1,1224.3,1.24801912]
[1610217771108,4.00959,1224.8,1224.5,4.00959]
[1610217771308,6.21599,1224.8,1224.5,4.00959]
[1610217772407,6.21599,1224.8,1224.6,1.2480598]
[1610217782121,73.03449,1224.8,1224.6,1.2480598]
[1610217783824,73.03449,1224.8,1224.2,4.00959]
[1610217785125,73.03449,1224.8,1224.3,1.24869364]
[1610217785325,4.00959,1224.4,1224.3,1.24869364]
[1610217785526,5.76689,1224.4,1224.3,1.24869364]
[1610217785727,1.7573,1224.4,1224.3,1.24869364]
[1610217790534,2.2064,1224.8,1224.3,1.24869364]
[1610217790734,4.00959,1224.9,1224.3,1.24869364]
[1610217791235,4.00959,1224.9,1224.8,4.00959]
[1610217793640,4.00959,1224.9,1224.8,5.25797724]
[1610217794141,2.5251,1225.1,1224.9,53.3491]
[1610217794340,1.899,1225.7,1224.9,53.3491]
[1610217794542,86.98789871,1226.3,1224.8,5.25797724]
[1610217794739,18.98812795,1226.4,1225.3,67.8952]
[1610217794740,93.31773824,1226.4,1225.3,67.8952]
[1610217795340,4.00959,1226.0,1225.9,4.00959]
[1610217795540,6.33499,1226.0,1225.9,4.00959]
[1610217796640,2.3254,1226.0,1225.9,4.00959]
[1610217797240,6.33499,1226.0,1225.9,4.00959]
[1610217798744,2.3254,1226.0,1225.9,4.00959]
[1610217800445,2.3254,1226.0,1224.4,0.24820529]
[1610217800648,18.0,1226.0,1224.6,1.8252]
[1610217801847,4.00959,1225.5,1225.3,4.00959]
[1610217802050,5.64459,1225.5,1224.7,1.24782926]
[1610217803149,14.57889,1225.5,1224.7,1.24782926]
[1610217803851,4.00959,1224.8,1224.7,1.24782926]
[1610217804650,4.00959,1224.8,1224.6,1.24827887]
[1610217807554,2.3517,1224.9,1224.6,1.24827887]
[1610217807761,6.36129,1224.9,1224.6,1.24827887]
[1610217808461,2.3517,1224.9,1224.6,1.24827887]
[1610217809163,51.4535,1225.4,1224.6,1.24827887]
[1610217809763,4.00959,1224.7,1224.6,1.24827887]
[1610217809963,6.41929,1224.7,1224.6,1.24827887]
[1610217810363,6.41929,1224.7,1224.5,4.00959]
[1610217810563,2.4097,1224.7,1224.5,4.00959]
[1610217811667,2.4097,1224.7,1224.6,1.24833681]
[1610217815068,64.2659,1225.4,1224.6,1.24833681]
[1610217815870,4.00959,1225.2,1224.9,4.00959]
[1610217816270,4.00959,1225.2,1224.6,1.24833681]
[1610217816473,6.15099,1225.2,1224.6,1.24833681]
[1610217817171,6.15099,1225.2,1224.5,3.405]
[1610217817773,4.00959,1225.0,1224.8,4.00959]
[1610217818773,4.00959,1225.0,1224.5,3.405]
[1610217819875,4.00959,1224.8,1224.6,4.00959]
[1610217820375,6.32679,1224.8,1224.6,5.25800267]
[1610217821575,6.32679,1224.8,1224.7,1.24841821]
[1610217823179,6.32679,1224.8,1224.2,47.049]
[1610217823180,6.32679,1224.8,1224.6,1.24860628]
[1610217824378,6.32679,1224.8,1224.5,1.24866856]
[1610217825882,4.00959,1224.6,1224.3,5.25825757]
[1610217827182,4.00959,1224.6,1224.4,1.24866209]
[1610217830889,2.3172,1224.8,1224.4,1.24866209]
[1610217831090,2.1414,1225.2,1224.4,1.24866209]
[1610217831290,63.9401,1225.3,1224.4,1.24866209]
[1610217831791,4.00959,1224.9,1224.6,4.00959]
[1610217831991,5.98349,1224.9,1224.6,4.00959]
[1610217832592,5.98349,1224.9,1224.7,1.24857618]
[1610217834297,1.9739,1224.9,1224.7,1.24857618]
[1610217835900,1.9739,1224.9,1224.8,4.00959]
[1610217837099,1.9739,1224.9,1224.8,5.25796231]
[1610217837298,4.00959,1225.2,1224.8,5.25796231]
[1610217837899,4.00959,1224.9,1224.8,5.25796231]
[1610217838099,6.52349,1224.9,1224.8,5.25796231]
[1610217838402,6.52349,1224.9,1224.8,4.00959]
[1610217839903,6.52349,1224.9,1224.8,5.25801858]
[1610217843504,6.52349,1224.9,1224.8,4.00959]
[1610217844206,6.52349,1224.9,1224.8,5.25799755]
[1610217845606,2.5139,1224.9,1224.8,5.25799755]
[1610217845806,2.5139,1224.9,1224.8,12.84119755]
[1610217846007,1.635,1225.5,1224.8,12.84119755]
[1610217846008,1.635,1225.5,1224.8,5.25799755]
[1610217846206,2.3166,1224.9,1224.8,1.24840755]
[1610217847008,2.3166,1224.9,1224.4,1.24812119]
[1610217847408,1.7396,1225.3,1224.9,48.9813]
[1610217848108,1.7396,1225.3,1225.2,4.00959]
[1610217848308,1.7396,1225.3,1225.2,11.02309]
[1610217849516,1.7396,1225.3,1225.2,12.27105833]
[1610217850118,1.7396,1225.3,1225.2,5.25755833]
[1610217851018,1.7396,1225.3,1225.2,1.24796833]
[1610217851419,1.7396,1225.3,1224.8,55.4554]
[1610217851822,4.00959,1225.7,1224.8,55.4554]
[1610217852221,4.00959,1225.2,1224.9,4.00959]
[1610217852420,6.28119,1225.2,1224.9,4.00959]
[1610217852620,6.28119,1225.2,1224.9,5.25788097]
[1610217853121,2.2716,1225.2,1224.9,5.25788097]
[1610217854223,2.2716,1225.2,1225.1,4.00959]
[1610217857326,2.2716,1225.2,1225.1,5.2577289]
[1610217857527,51.9029,1225.8,1225.1,5.2577289]
[1610217857725,18.0,1226.0,1225.1,5.2577289]
[1610217857926,18.0,1226.0,1225.1,59.4926289]
[1610217858326,4.00959,1225.4,1225.3,4.00959]
[1610217858526,5.58349,1225.4,1225.3,4.00959]
[1610217860529,1.5739,1225.4,1225.3,4.00959]
[1610217863731,2.198,1225.4,1225.3,4.00959]
[1610217865634,2.198,1225.4,1225.3,5.25768084]
[1610217866834,2.198,1225.4,1225.3,1.24809084]
[1610217868335,6.20759,1225.4,1225.3,1.24809084]
[1610217868638,6.20759,1225.4,1224.8,1.2484506]
[1610217870438,4.00959,1224.9,1224.8,1.2484506]
[1610217870637,6.23489,1224.9,1224.8,1.2484506]
[1610217871638,7.86689,1224.9,1224.8,1.2484506]
[1610217872042,3.8573,1224.9,1224.8,1.2484506]
[1610217872243,2.2253,1224.9,1224.8,1.2484506]
[1610217873043,2.2253,1224.9,1224.8,67.2673506]
[1610217874344,6.20759,1225.4,1224.8,67.2673506]
[1610217874745,2.198,1225.4,1224.8,67.2673506]
[1610217874946,18.0,1226.0,1224.8,67.2673506]
[1610217875248,18.0,1226.0,1224.9,1.24813259]
[1610217876048,48.0,1226.0,1224.9,1.24813259]
[1610217876447,48.0,1226.0,1225.4,4.00959]
[1610217876848,18.0,1226.0,1224.9,1.24813259]
[1610217877249,19.7201,1226.0,1224.9,1.24813259]
[1610217878050,19.7201,1226.0,1224.9,4.65313259]
[1610217878552,4.00959,1225.4,1225.2,4.00959]
[1610217878751,5.67079,1225.4,1225.3,9.1789]
[1610217885762,5.67079,1225.4,1225.2,4.00959]
[1610217886765,5.67079,1225.4,1224.8,67.8296]
[1610217886964,5.67079,1225.4,1224.8,64.4246]
[1610217888465,5.67079,1225.4,1224.9,1.24864303]
[1610217888666,4.00959,1225.0,1224.9,1.24864303]
[1610217888866,6.01569,1225.0,1224.9,1.24864303]
[1610217892569,2.0061,1225.0,1224.8,68.43419]
[1610217893870,4.00959,1225.2,1224.8,68.43419]
[1610217894070,4.00959,1225.2,1224.9,1.24861293]
[1610217894570,1.6612,1225.4,1224.9,1.24861293]
[1610217895170,136.7269717,1226.0,1224.9,1.24861293]
[1610217895370,136.7269717,1226.0,1225.0,64.949]
[1610217896575,4.00959,1225.1,1225.0,64.949]
[1610217896773,5.68139,1225.1,1225.0,64.949]
[1610217901377,5.68139,1225.1,1224.9,4.00959]
[1610217903878,1.6718,1225.1,1224.9,4.00959]
[1610217904079,47.8807,1225.7,1224.9,4.00959]
[1610217904280,2.459,1225.1,1224.9,4.00959]
[1610217906284,2.459,1225.1,1225.0,1.24843638]
[1610217909284,4.00959,1225.7,1225.0,1.24843638]
[1610217909485,4.00959,1225.7,1225.5,49.9623]
[1610217909686,4.00959,1225.7,1225.0,1.24843638]
[1610217909884,6.42689,1225.7,1225.5,59.825]
[1610217910087,6.42689,1225.7,1225.0,1.24843638]
[1610217910284,6.42689,1225.7,1225.5,59.8079]
[1610217910484,6.42689,1225.7,1225.0,1.24843638]
[1610217910685,6.42689,1225.7,1225.5,56.61579]
[1610217912685,6.42689,1225.7,1225.5,4.00959]
[1610217913487,6.42689,1225.7,1225.6,53.0092]
[1610217914088,2.4173,1225.7,1225.6,53.0092]
[1610217915290,4.00959,1225.9,1225.6,53.0092]
[1610217920798,4.00959,1225.9,1225.7,4.00959]
[1610217927207,4.00959,1225.9,1225.6,53.0092]
[1610217928809,4.00959,1225.9,1225.6,57.01879]
[1610217933012,4.00959,1225.9,1225.6,53.0092]
[1610217933214,4.00959,1225.9,1225.5,55.0]
[1610217933414,4.00959,1225.9,1224.9,3.405]
[1610217933614,4.00959,1225.9,1224.9,69.9517]
[1610217934214,4.00959,1225.9,1225.0,1.24802137]
[1610217934815,4.00959,1225.6,1225.4,4.00959]
[1610217935015,5.69369,1225.6,1225.5,9.5664]
[1610217936616,5.69369,1225.6,1225.0,1.24802137]
[1610217936816,4.00959,1225.3,1225.2,4.00959]
[1610217937017,5.89459,1225.3,1225.2,4.00959]
[1610217937218,5.89459,1225.3,1224.3,5.6483]
[1610217938019,5.89459,1225.3,1224.4,65.1079]
[1610217938218,5.89459,1225.3,1224.9,55.6464]
[1610217938819,5.89459,1225.3,1225.1,4.00959]
[1610217939021,5.89459,1225.3,1225.1,11.41259]
[1610217939319,1.885,1225.3,1225.1,11.41259]
[1610217942021,4.00959,1225.5,1225.1,11.41259]
[1610217942421,4.00959,1225.5,1225.1,4.00959]
[1610217942623,1.6841,1225.6,1225.5,56.848]
[1610217942822,4.00959,1225.6,1225.5,60.85759]
[1610217944128,19.7201,1226.0,1225.5,60.85759]
[1610217944828,4.00959,1225.9,1225.5,60.85759]
[1610217946828,4.00959,1225.9,1225.8,4.00959]